[Event "Late-Titled-Tuesday-Blitz-October-10-2023"]
[Site "Chess.com"]
[Date "2023.10.10"]
[Round "1"]
[White "Rodalquilar"]
[Black "Schwindle"]
[Result "1-0"]
[WhiteElo "2749"]
[BlackElo "2410"]
[TimeControl "180+1"]
[EndTime "14:08:05 PDT"]
[Termination "Rodalquilar won by resignation"]

1. d4 {[%clk 0:03:00.9]} 1... Nf6 {[%clk 0:02:59.9]} 2. Nf3 {[%clk 0:03:01.2]}
2... e6 {[%clk 0:03:00.3]} 3. Bf4 {[%clk 0:03:01.3]} 3... d5 {[%clk 0:03:00]} 4.
e3 {[%clk 0:03:01.7]} 4... Bd6 {[%clk 0:03:00.3]} 5. Nbd2 {[%clk 0:03:02.1]}
5... Nc6 {[%clk 0:03:00.5]} 6. Bd3 {[%clk 0:02:37.3]} 6... O-O {[%clk
0:02:59.2]} 7. c3 {[%clk 0:02:26.2]} 7... Qe7 {[%clk 0:02:58]} 8. Ne5 {[%clk
0:02:26.5]} 8... Nd7 {[%clk 0:02:57.5]} 9. Nxc6 {[%clk 0:01:33.2]} 9... bxc6
{[%clk 0:02:56.3]} 10. Qf3 {[%clk 0:01:33.5]} 10... e5 {[%clk 0:02:40]} 11. dxe5
{[%clk 0:01:30.5]} 11... Nxe5 {[%clk 0:02:39]} 12. Bxe5 {[%clk 0:01:30]} 12...
Bxe5 {[%clk 0:02:39.5]} 13. Bf5 {[%clk 0:01:24.5]} 13... Ba6 {[%clk 0:02:33]}
14. Nb3 {[%clk 0:01:16.5]} 14... Rab8 {[%clk 0:01:51.9]} 15. Rd1 {[%clk
0:01:13.8]} 15... Bc4 {[%clk 0:01:36.4]} 16. Bc2 {[%clk 0:01:04]} 16... a5
{[%clk 0:01:24.2]} 17. Rd2 {[%clk 0:01:04.3]} 17... g6 {[%clk 0:01:20.4]} 18.
Bd1 {[%clk 0:01:00.5]} 18... Rb5 {[%clk 0:00:40.5]} 19. Nd4 {[%clk 0:00:49.3]}
19... Rb6 {[%clk 0:00:35.2]} 20. b3 {[%clk 0:00:43.3]} 20... Ba6 {[%clk
0:00:35.3]} 21. Be2 {[%clk 0:00:43.9]} 21... Bxe2 {[%clk 0:00:31.1]} 22. Nxe2
{[%clk 0:00:43.9]} 22... Qa3 {[%clk 0:00:27.3]} 23. O-O {[%clk 0:00:41.8]} 23...
Bg7 {[%clk 0:00:25.9]} 24. e4 {[%clk 0:00:36.3]} 24... dxe4 {[%clk 0:00:18.4]}
25. Qxe4 {[%clk 0:00:37.2]} 25... Qc5 {[%clk 0:00:17.3]} 26. Rfd1 {[%clk
0:00:30.9]} 26... h5 {[%clk 0:00:17.2]} 27. h3 {[%clk 0:00:29.9]} 27... Rbb8
{[%clk 0:00:14.6]} 28. Rd3 {[%clk 0:00:23.3]} 28... Rbe8 {[%clk 0:00:14.6]} 29.
Qf3 {[%clk 0:00:23.6]} 29... Re6 {[%clk 0:00:13.7]} 30. Nd4 {[%clk 0:00:21.4]}
30... Rf6 {[%clk 0:00:14.1]} 31. Qg3 {[%clk 0:00:19.7]} 31... Re8 {[%clk
0:00:13.7]} 32. Qxc7 {[%clk 0:00:19.1]} 32... Qg5 {[%clk 0:00:12.2]} 33. Qg3
{[%clk 0:00:18.5]} 33... Qc5 {[%clk 0:00:11.6]} 34. Re3 {[%clk 0:00:12.7]} 34...
Rd8 {[%clk 0:00:10.8]} 35. Rde1 {[%clk 0:00:12.6]} 35... Rd5 {[%clk 0:00:09.6]}
36. Re8+ {[%clk 0:00:12.6]} 36... Kh7 {[%clk 0:00:09.9]} 37. Qd3 {[%clk
0:00:10]} 37... Rg5 {[%clk 0:00:09.5]} 38. Qe3 {[%clk 0:00:07.4]} 38... Qd5
{[%clk 0:00:09.5]} 39. Qe4 {[%clk 0:00:07]} 39... Qd6 {[%clk 0:00:08.1]} 40. Re5
{[%clk 0:00:04.2]} 40... Rxe5 {[%clk 0:00:06.2]} 41. Qxe5 {[%clk 0:00:04.7]}
41... Qa3 {[%clk 0:00:06.8]} 42. Qe2 {[%clk 0:00:04.5]} 42... Qc5 {[%clk
0:00:05.9]} 43. Nf3 {[%clk 0:00:04.8]} 43... Qxc3 {[%clk 0:00:05.7]} 44. Ng5+
{[%clk 0:00:05.1]} 44... Kg8 {[%clk 0:00:05.1]} 45. Ne4 {[%clk 0:00:05.3]} 45...
Qe5 {[%clk 0:00:04.8]} 46. Nxf6+ {[%clk 0:00:05.8]} 46... Qxf6 {[%clk
0:00:05.7]} 47. Qe8+ {[%clk 0:00:06.1]} 47... Kh7 {[%clk 0:00:05.8]} 48. Qe7
{[%clk 0:00:06.6]} 48... Qf5 {[%clk 0:00:05]} 49. Qe4 {[%clk 0:00:06.6]} 49...
Qf6 {[%clk 0:00:04.9]} 50. Re3 {[%clk 0:00:06.1]} 50... Qa1+ {[%clk 0:00:05]}
51. Kh2 {[%clk 0:00:05.5]} 51... Qxa2 {[%clk 0:00:05.9]} 52. Qxc6 {[%clk
0:00:05.2]} 52... Qd2 {[%clk 0:00:05.3]} 53. Qf3 {[%clk 0:00:05.5]} 53... Qd6+
{[%clk 0:00:05.1]} 54. g3 {[%clk 0:00:05.4]} 54... Bd4 {[%clk 0:00:05.1]} 55.
Rd3 {[%clk 0:00:05.4]} 55... Qe5 {[%clk 0:00:05.1]} 56. Qxf7+ {[%clk 0:00:05]}
1-0

[Event "Late-Titled-Tuesday-Blitz-October-10-2023"]
[Site "Chess.com"]
[Date "2023.10.10"]
[Round "1"]
[White "AlivodicDario"]
[Black "ContrVersia"]
[Result "0-1"]
[WhiteElo "2459"]
[BlackElo "2891"]
[TimeControl "180+1"]
[EndTime "14:08:06 PDT"]
[Termination "ContrVersia won on time"]

1. d4 {[%clk 0:02:59.3]} 1... Nf6 {[%clk 0:02:59.7]} 2. c4 {[%clk 0:02:59.2]}
2... e6 {[%clk 0:03:00.1]} 3. Nc3 {[%clk 0:02:59.5]} 3... Bb4 {[%clk 0:02:59.9]}
4. f3 {[%clk 0:02:59.9]} 4... c5 {[%clk 0:02:59.9]} 5. d5 {[%clk 0:03:00.1]}
5... exd5 {[%clk 0:03:00.8]} 6. cxd5 {[%clk 0:03:00.4]} 6... O-O {[%clk
0:03:01.5]} 7. e4 {[%clk 0:03:00.9]} 7... d6 {[%clk 0:03:02.1]} 8. Ne2 {[%clk
0:02:57.2]} 8... Re8 {[%clk 0:03:02.1]} 9. Ng3 {[%clk 0:02:56.3]} 9... Nbd7
{[%clk 0:03:02.5]} 10. Be2 {[%clk 0:02:31.4]} 10... Ne5 {[%clk 0:02:53]} 11. O-O
{[%clk 0:02:28.1]} 11... a6 {[%clk 0:02:53.1]} 12. a3 {[%clk 0:02:25.9]} 12...
Ba5 {[%clk 0:02:52.8]} 13. Be3 {[%clk 0:02:23.1]} 13... Bd7 {[%clk 0:02:52.8]}
14. Rb1 {[%clk 0:02:18.9]} 14... b5 {[%clk 0:02:43.6]} 15. b4 {[%clk 0:02:12.3]}
15... cxb4 {[%clk 0:02:44.5]} 16. axb4 {[%clk 0:02:12.8]} 16... Bb6 {[%clk
0:02:45.4]} 17. Qd2 {[%clk 0:02:12.8]} 17... Qb8 {[%clk 0:02:41.4]} 18. Rfc1
{[%clk 0:02:04.2]} 18... Rc8 {[%clk 0:02:39.8]} 19. Nd1 {[%clk 0:01:54]} 19...
Qa7 {[%clk 0:02:37.1]} 20. h3 {[%clk 0:01:35.7]} 20... Nc4 {[%clk 0:02:20.6]}
21. Bxc4 {[%clk 0:01:34.7]} 21... bxc4 {[%clk 0:02:21.5]} 22. Rc3 {[%clk
0:01:19.5]} 22... Rab8 {[%clk 0:02:16]} 23. Ne2 {[%clk 0:01:07.5]} 23... a5
{[%clk 0:02:06.8]} 24. Kf1 {[%clk 0:00:49.2]} 24... a4 {[%clk 0:01:33.5]} 25.
Ra3 {[%clk 0:00:35.8]} 25... Bb5 {[%clk 0:01:26.7]} 26. Nec3 {[%clk 0:00:34.1]}
26... Bxe3 {[%clk 0:01:21]} 27. Qxe3 {[%clk 0:00:33.6]} 27... Qd7 {[%clk
0:00:37.8]} 28. Nxb5 {[%clk 0:00:33.4]} 28... Rxb5 {[%clk 0:00:38.1]} 29. Nc3
{[%clk 0:00:33.3]} 29... Rb7 {[%clk 0:00:34.7]} 30. Rxa4 {[%clk 0:00:32.2]}
30... Qc7 {[%clk 0:00:31.6]} 31. b5 {[%clk 0:00:31.8]} 31... Nd7 {[%clk
0:00:31.7]} 32. Qd4 {[%clk 0:00:28.4]} 32... Nb6 {[%clk 0:00:29.6]} 33. Ra6
{[%clk 0:00:26.5]} 33... h5 {[%clk 0:00:29.8]} 34. Re1 {[%clk 0:00:19.2]} 34...
h4 {[%clk 0:00:29.2]} 35. e5 {[%clk 0:00:19]} 35... dxe5 {[%clk 0:00:30.1]} 36.
Rxe5 {[%clk 0:00:19.2]} 36... Qd8 {[%clk 0:00:29.5]} 37. d6 {[%clk 0:00:15.4]}
37... Nd7 {[%clk 0:00:26.8]} 38. Re7 {[%clk 0:00:12.9]} 38... Rcb8 {[%clk
0:00:27.2]} 39. Qf4 {[%clk 0:00:06.4]} 39... Nc5 {[%clk 0:00:19]} 40. Rxb7
{[%clk 0:00:03.8]} 40... Rxb7 {[%clk 0:00:18.5]} 41. Rc6 {[%clk 0:00:04.5]}
41... Ne6 {[%clk 0:00:17.6]} 42. Qxc4 {[%clk 0:00:04.5]} 42... Rb8 {[%clk
0:00:16.7]} 43. Nd5 {[%clk 0:00:03]} 43... Qg5 {[%clk 0:00:12.3]} 44. Ne7+
{[%clk 0:00:03.4]} 44... Kh7 {[%clk 0:00:12.6]} 45. Qe4+ {[%clk 0:00:02.9]}
45... g6 {[%clk 0:00:12.9]} 46. Rc4 {[%clk 0:00:01.9]} 46... Rxb5 {[%clk
0:00:12.4]} 47. Qxh4+ {[%clk 0:00:02.3]} 47... Qxh4 {[%clk 0:00:11.8]} 48. Rxh4+
{[%clk 0:00:03.2]} 48... Kg7 {[%clk 0:00:12.3]} 49. Rc4 {[%clk 0:00:03.7]} 49...
Rb1+ {[%clk 0:00:10.2]} 50. Kf2 {[%clk 0:00:03.6]} 50... Rb6 {[%clk 0:00:09.5]}
51. Nc8 {[%clk 0:00:03.6]} 51... Ra6 {[%clk 0:00:09]} 52. d7 {[%clk 0:00:03.8]}
52... Ra2+ {[%clk 0:00:08.7]} 53. Ke3 {[%clk 0:00:03.4]} 53... Rxg2 {[%clk
0:00:08.9]} 54. Nd6 {[%clk 0:00:02.6]} 54... Rg1 {[%clk 0:00:07.6]} 55. Nb7
{[%clk 0:00:02]} 55... Rd1 {[%clk 0:00:07.4]} 0-1

[Event "Late-Titled-Tuesday-Blitz-October-10-2023"]
[Site "Chess.com"]
[Date "2023.10.10"]
[Round "1"]
[White "Squirlolz"]
[Black "PawnEatingZombie"]
[Result "1-0"]
[WhiteElo "2570"]
[BlackElo "2197"]
[TimeControl "180+1"]
[EndTime "14:08:06 PDT"]
[Termination "Squirlolz won on time"]

1. e4 {[%clk 0:02:41.4]} 1... e6 {[%clk 0:02:59.4]} 2. d4 {[%clk 0:02:40.2]}
2... d5 {[%clk 0:02:59.9]} 3. e5 {[%clk 0:02:40.6]} 3... c5 {[%clk 0:02:59.5]}
4. c3 {[%clk 0:02:41.5]} 4... Nc6 {[%clk 0:02:59.5]} 5. Nf3 {[%clk 0:02:36]}
5... Bd7 {[%clk 0:02:59.5]} 6. Bd3 {[%clk 0:02:34.8]} 6... Nge7 {[%clk
0:02:54.1]} 7. dxc5 {[%clk 0:01:52.8]} 7... a5 {[%clk 0:02:33.9]} 8. O-O {[%clk
0:01:45.6]} 8... Ng6 {[%clk 0:02:26.1]} 9. Re1 {[%clk 0:01:21.7]} 9... Bxc5
{[%clk 0:02:20.1]} 10. Nbd2 {[%clk 0:01:18.8]} 10... a4 {[%clk 0:02:15.6]} 11.
Qe2 {[%clk 0:01:15.7]} 11... O-O {[%clk 0:02:13.8]} 12. Rb1 {[%clk 0:01:15.7]}
12... Nf4 {[%clk 0:02:03.9]} 13. Qf1 {[%clk 0:01:16.2]} 13... Nxd3 {[%clk
0:02:01.8]} 14. Qxd3 {[%clk 0:01:17.1]} 14... f6 {[%clk 0:01:44.9]} 15. exf6
{[%clk 0:01:07.7]} 15... Qxf6 {[%clk 0:01:42.6]} 16. Nf1 {[%clk 0:01:08.3]}
16... h6 {[%clk 0:01:15.6]} 17. Be3 {[%clk 0:01:07.3]} 17... Bd6 {[%clk
0:01:12.9]} 18. Ng3 {[%clk 0:01:02.7]} 18... Be8 {[%clk 0:00:54.7]} 19. Rbd1
{[%clk 0:01:01.7]} 19... Bg6 {[%clk 0:00:53.4]} 20. Qe2 {[%clk 0:01:01.8]} 20...
Rad8 {[%clk 0:00:49]} 21. Bd4 {[%clk 0:00:55.6]} 21... Qf7 {[%clk 0:00:42.8]}
22. Qxe6 {[%clk 0:00:54.7]} 22... Nxd4 {[%clk 0:00:34.7]} 23. Nxd4 {[%clk
0:00:49.9]} 23... Rfe8 {[%clk 0:00:32]} 24. Qxf7+ {[%clk 0:00:49.6]} 24... Bxf7
{[%clk 0:00:31.1]} 25. Ngf5 {[%clk 0:00:45.6]} 25... Bf8 {[%clk 0:00:31.1]} 26.
f3 {[%clk 0:00:44.6]} 26... g6 {[%clk 0:00:29.9]} 27. Ne3 {[%clk 0:00:43.9]}
27... a3 {[%clk 0:00:22.2]} 28. b3 {[%clk 0:00:30.8]} 28... Bg7 {[%clk
0:00:20.6]} 29. Kf2 {[%clk 0:00:30.3]} 29... Rc8 {[%clk 0:00:20.2]} 30. Nxd5
{[%clk 0:00:30]} 30... Bxd5 {[%clk 0:00:19.4]} 31. Rxe8+ {[%clk 0:00:27.8]}
31... Rxe8 {[%clk 0:00:19.1]} 32. Nb5 {[%clk 0:00:28.4]} 32... Bf7 {[%clk
0:00:18.6]} 33. c4 {[%clk 0:00:26.6]} 33... Bf6 {[%clk 0:00:17.6]} 34. Nxa3
{[%clk 0:00:26.9]} 34... Rd8 {[%clk 0:00:17.6]} 35. Rxd8+ {[%clk 0:00:24.6]}
35... Bxd8 {[%clk 0:00:18.5]} 36. Nb5 {[%clk 0:00:24.1]} 36... Be7 {[%clk
0:00:17.2]} 37. Ke3 {[%clk 0:00:23.9]} 37... Kf8 {[%clk 0:00:17.4]} 38. g4
{[%clk 0:00:23.3]} 38... Ke8 {[%clk 0:00:17.7]} 39. f4 {[%clk 0:00:21.3]} 39...
Kd7 {[%clk 0:00:18.1]} 40. Ke4 {[%clk 0:00:21.6]} 40... Kc6 {[%clk 0:00:18.2]}
41. f5 {[%clk 0:00:21.4]} 41... g5 {[%clk 0:00:15.6]} 42. a3 {[%clk 0:00:18]}
42... Kc5 {[%clk 0:00:13.8]} 43. Nd4 {[%clk 0:00:16.9]} 43... Bd6 {[%clk
0:00:07.9]} 44. Nf3 {[%clk 0:00:15.7]} 44... Bf4 {[%clk 0:00:06.9]} 45. h4
{[%clk 0:00:15.9]} 45... Bc1 {[%clk 0:00:06]} 46. b4+ {[%clk 0:00:14.8]} 46...
Kxc4 {[%clk 0:00:05.3]} 47. Ne5+ {[%clk 0:00:15.2]} 47... Kb3 {[%clk 0:00:03.7]}
48. Nxf7 {[%clk 0:00:16.1]} 48... gxh4 {[%clk 0:00:03.8]} 49. Nd6 {[%clk
0:00:08.8]} 49... h3 {[%clk 0:00:04]} 50. Kf3 {[%clk 0:00:09.3]} 50... h2 {[%clk
0:00:04]} 51. Kg2 {[%clk 0:00:10.2]} 51... Bf4 {[%clk 0:00:03.8]} 52. Nxb7
{[%clk 0:00:09.6]} 52... Kxa3 {[%clk 0:00:03.9]} 53. b5 {[%clk 0:00:09.7]} 53...
Kb4 {[%clk 0:00:04]} 54. f6 {[%clk 0:00:07.9]} 54... h5 {[%clk 0:00:01.1]} 55.
gxh5 {[%clk 0:00:03.2]} 55... Bh6 {[%clk 0:00:01.3]} 56. Kxh2 {[%clk 0:00:03.3]}
56... Kxb5 {[%clk 0:00:01.6]} 57. Nd6+ {[%clk 0:00:03.6]} 57... Kc6 {[%clk
0:00:02]} 58. Nf5 {[%clk 0:00:04.5]} 58... Bf8 {[%clk 0:00:01.6]} 59. h6 {[%clk
0:00:04.8]} 1-0

[Event "Late-Titled-Tuesday-Blitz-October-10-2023"]
[Site "Chess.com"]
[Date "2023.10.10"]
[Round "1"]
[White "Angry_Twin"]
[Black "onnoelgersma"]
[Result "0-1"]
[WhiteElo "2946"]
[BlackElo "2516"]
[TimeControl "180+1"]
[EndTime "14:08:09 PDT"]
[Termination "onnoelgersma won by checkmate"]

1. e4 {[%clk 0:03:00.9]} 1... c6 {[%clk 0:02:58.1]} 2. d4 {[%clk 0:02:59.6]}
2... d5 {[%clk 0:02:56]} 3. e5 {[%clk 0:03:00.1]} 3... c5 {[%clk 0:02:55.4]} 4.
Nf3 {[%clk 0:02:55]} 4... cxd4 {[%clk 0:02:53.3]} 5. Nxd4 {[%clk 0:02:55.9]}
5... e6 {[%clk 0:02:50.8]} 6. c4 {[%clk 0:02:55.6]} 6... Nc6 {[%clk 0:02:50.5]}
7. Nc3 {[%clk 0:02:54]} 7... Bc5 {[%clk 0:02:40.5]} 8. Nb3 {[%clk 0:02:47.4]}
8... Bb4 {[%clk 0:02:37.9]} 9. cxd5 {[%clk 0:02:45.5]} 9... exd5 {[%clk
0:02:38.1]} 10. Bb5 {[%clk 0:02:35.2]} 10... Ne7 {[%clk 0:02:36.2]} 11. O-O
{[%clk 0:02:35.3]} 11... O-O {[%clk 0:02:34.2]} 12. Bg5 {[%clk 0:02:28.1]} 12...
h6 {[%clk 0:02:27.9]} 13. Bh4 {[%clk 0:02:27.7]} 13... a6 {[%clk 0:02:17.6]} 14.
Bxc6 {[%clk 0:02:16.6]} 14... bxc6 {[%clk 0:02:17.3]} 15. a3 {[%clk 0:02:17.3]}
15... Bxc3 {[%clk 0:02:17.2]} 16. bxc3 {[%clk 0:02:18.2]} 16... g5 {[%clk
0:02:14.7]} 17. Bg3 {[%clk 0:02:18.1]} 17... Nf5 {[%clk 0:02:12.1]} 18. Nd4
{[%clk 0:02:17.3]} 18... Be6 {[%clk 0:02:09.8]} 19. Nxc6 {[%clk 0:02:10]} 19...
Qd7 {[%clk 0:02:09.7]} 20. Nd4 {[%clk 0:02:10]} 20... Rac8 {[%clk 0:02:06.4]}
21. Qh5 {[%clk 0:02:02.5]} 21... Kg7 {[%clk 0:01:59.8]} 22. Qf3 {[%clk
0:01:39.3]} 22... Rc4 {[%clk 0:01:39.6]} 23. h4 {[%clk 0:01:37.2]} 23... Rfc8
{[%clk 0:01:36.3]} 24. hxg5 {[%clk 0:01:35.1]} 24... hxg5 {[%clk 0:01:35.3]} 25.
Nxf5+ {[%clk 0:01:25.2]} 25... Bxf5 {[%clk 0:01:34.8]} 26. Qe3 {[%clk
0:01:25.8]} 26... Qe7 {[%clk 0:01:33.5]} 27. Qd2 {[%clk 0:01:21.8]} 27... Be6
{[%clk 0:01:20.5]} 28. Rac1 {[%clk 0:01:15]} 28... Rh8 {[%clk 0:01:12.2]} 29. f4
{[%clk 0:01:10.8]} 29... gxf4 {[%clk 0:01:02.8]} 30. Bxf4 {[%clk 0:01:09]} 30...
Qh4 {[%clk 0:01:00.7]} 31. Rf3 {[%clk 0:01:09.4]} 31... d4 {[%clk 0:00:27.9]}
32. cxd4 {[%clk 0:00:55.9]} 32... Rxc1+ {[%clk 0:00:22.2]} 33. Qxc1 {[%clk
0:00:56.1]} 33... Qh1+ {[%clk 0:00:20.1]} 34. Kf2 {[%clk 0:00:56.2]} 34... Qxc1
{[%clk 0:00:21]} 35. Bxc1 {[%clk 0:00:57.1]} 35... Bd5 {[%clk 0:00:21.7]} 36.
Rg3+ {[%clk 0:00:56.7]} 36... Kf8 {[%clk 0:00:22]} 37. a4 {[%clk 0:00:53.1]}
37... Ke7 {[%clk 0:00:22.1]} 38. Rg4 {[%clk 0:00:34.9]} 38... Ke6 {[%clk
0:00:21.8]} 39. Rf4 {[%clk 0:00:34.9]} 39... Rc8 {[%clk 0:00:19.6]} 40. Rf6+
{[%clk 0:00:34.7]} 40... Ke7 {[%clk 0:00:19.9]} 41. Ba3+ {[%clk 0:00:34.8]}
41... Ke8 {[%clk 0:00:19.9]} 42. Rxa6 {[%clk 0:00:35.1]} 42... Rc2+ {[%clk
0:00:18.9]} 43. Ke1 {[%clk 0:00:32.8]} 43... Rxg2 {[%clk 0:00:19.1]} 44. Bd6
{[%clk 0:00:31.6]} 44... Kd7 {[%clk 0:00:18.6]} 45. Ra7+ {[%clk 0:00:31.7]}
45... Ke6 {[%clk 0:00:18.8]} 46. a5 {[%clk 0:00:32.3]} 46... Kf5 {[%clk
0:00:18.3]} 47. Kf1 {[%clk 0:00:11.5]} 47... Ra2 {[%clk 0:00:17.4]} 48. Rc7
{[%clk 0:00:04.7]} 48... Ke4 {[%clk 0:00:13.9]} 49. Bc5 {[%clk 0:00:02.2]} 49...
Rxa5 {[%clk 0:00:12.3]} 50. Rc8 {[%clk 0:00:01.8]} 50... Ra2 {[%clk 0:00:11.7]}
51. Ke1 {[%clk 0:00:02.2]} 51... Ke3 {[%clk 0:00:10.4]} 52. Kd1 {[%clk
0:00:02.8]} 52... Be4 {[%clk 0:00:09.5]} 53. Bb4 {[%clk 0:00:02]} 53... Rb2
{[%clk 0:00:08.1]} 54. Bc3 {[%clk 0:00:02]} 54... Rb1# {[%clk 0:00:07.4]} 0-1

[Event "Late-Titled-Tuesday-Blitz-October-10-2023"]
[Site "Chess.com"]
[Date "2023.10.10"]
[Round "1"]
[White "pirulillo"]
[Black "SaqoChess_Twitch"]
[Result "1-0"]
[WhiteElo "2328"]
[BlackElo "2617"]
[TimeControl "180+1"]
[EndTime "14:08:33 PDT"]
[Termination "pirulillo won by checkmate"]

1. e4 {[%clk 0:02:59.4]} 1... c5 {[%clk 0:02:58.8]} 2. Nf3 {[%clk 0:02:58.3]}
2... d6 {[%clk 0:02:58.5]} 3. d4 {[%clk 0:02:54.5]} 3... cxd4 {[%clk 0:02:52.5]}
4. Nxd4 {[%clk 0:02:55.4]} 4... Nf6 {[%clk 0:02:52.3]} 5. Nc3 {[%clk 0:02:49.3]}
5... g6 {[%clk 0:02:52.1]} 6. Bc4 {[%clk 0:02:35.9]} 6... Bg7 {[%clk 0:02:51.9]}
7. O-O {[%clk 0:02:33]} 7... O-O {[%clk 0:02:51.9]} 8. h3 {[%clk 0:02:32.2]}
8... Nc6 {[%clk 0:02:51.8]} 9. Nf3 {[%clk 0:02:32]} 9... a6 {[%clk 0:02:49.5]}
10. a4 {[%clk 0:02:30.8]} 10... b6 {[%clk 0:02:49.6]} 11. Re1 {[%clk 0:02:26.6]}
11... Bb7 {[%clk 0:02:50.2]} 12. Nd5 {[%clk 0:02:19.8]} 12... e6 {[%clk
0:02:41.1]} 13. Nxf6+ {[%clk 0:02:07.5]} 13... Bxf6 {[%clk 0:02:41.1]} 14. c3
{[%clk 0:01:58.8]} 14... Ne5 {[%clk 0:02:30.3]} 15. Nxe5 {[%clk 0:01:49.6]}
15... dxe5 {[%clk 0:02:30.9]} 16. Qe2 {[%clk 0:01:29.1]} 16... Qc7 {[%clk
0:02:30.1]} 17. Bh6 {[%clk 0:01:13.1]} 17... Rfd8 {[%clk 0:02:17.6]} 18. Red1
{[%clk 0:01:08.1]} 18... a5 {[%clk 0:01:57.6]} 19. f3 {[%clk 0:00:56.8]} 19...
Rac8 {[%clk 0:01:53.9]} 20. Bb5 {[%clk 0:00:42.2]} 20... Qe7 {[%clk 0:01:40.6]}
21. Be3 {[%clk 0:00:39.3]} 21... Qc7 {[%clk 0:01:35.4]} 22. Qf2 {[%clk
0:00:34.8]} 22... Rxd1+ {[%clk 0:01:20.2]} 23. Rxd1 {[%clk 0:00:35.7]} 23... Rd8
{[%clk 0:01:20.5]} 24. Rxd8+ {[%clk 0:00:27.4]} 24... Bxd8 {[%clk 0:01:21.4]}
25. Qe2 {[%clk 0:00:18.4]} 25... Qd6 {[%clk 0:01:19.9]} 26. Qd3 {[%clk
0:00:16.8]} 26... Qxd3 {[%clk 0:01:18.9]} 27. Bxd3 {[%clk 0:00:17.7]} 27... Bc6
{[%clk 0:01:19.4]} 28. b3 {[%clk 0:00:15.7]} 28... h5 {[%clk 0:01:18.4]} 29. Kf2
{[%clk 0:00:15.3]} 29... Kf8 {[%clk 0:01:19]} 30. Ke2 {[%clk 0:00:15.2]} 30...
Ke8 {[%clk 0:01:19.7]} 31. Bf2 {[%clk 0:00:14.7]} 31... Kd7 {[%clk 0:01:19.8]}
32. Be3 {[%clk 0:00:14.8]} 32... Kc7 {[%clk 0:01:20.3]} 33. Kd2 {[%clk
0:00:14.9]} 33... Be7 {[%clk 0:01:20.9]} 34. Kc2 {[%clk 0:00:15]} 34... Bd7
{[%clk 0:01:18.8]} 35. Kd2 {[%clk 0:00:15.2]} 35... f6 {[%clk 0:01:18.2]} 36.
Kc2 {[%clk 0:00:15.3]} 36... h4 {[%clk 0:01:12.1]} 37. Kd2 {[%clk 0:00:15]}
37... g5 {[%clk 0:01:12.5]} 38. Kc2 {[%clk 0:00:14.4]} 38... f5 {[%clk
0:01:12.8]} 39. Kd2 {[%clk 0:00:14.4]} 39... f4 {[%clk 0:00:57.3]} 40. Bf2
{[%clk 0:00:13.9]} 40... Bd6 {[%clk 0:00:57.6]} 41. Kc2 {[%clk 0:00:14.1]} 41...
Bc6 {[%clk 0:00:58.2]} 42. Kd2 {[%clk 0:00:14.3]} 42... Be8 {[%clk 0:00:56.6]}
43. Kc2 {[%clk 0:00:13.9]} 43... Bf7 {[%clk 0:00:53.8]} 44. Kd2 {[%clk
0:00:13.4]} 44... Kc6 {[%clk 0:00:54.3]} 45. Kc2 {[%clk 0:00:13.5]} 45... Bc5
{[%clk 0:00:54.1]} 46. Bxc5 {[%clk 0:00:12.3]} 46... bxc5 {[%clk 0:00:46.6]} 47.
Bb5+ {[%clk 0:00:12]} 47... Kb6 {[%clk 0:00:46.9]} 48. Kd3 {[%clk 0:00:12.4]}
48... Bg6 {[%clk 0:00:45.7]} 49. Kc4 {[%clk 0:00:11.7]} 49... Bf7 {[%clk
0:00:45.5]} 50. Bd7 {[%clk 0:00:11.2]} 50... Bg6 {[%clk 0:00:43.9]} 51. Bb5
{[%clk 0:00:11.1]} 51... Bf7 {[%clk 0:00:43.8]} 52. b4 {[%clk 0:00:11.5]} 52...
cxb4 {[%clk 0:00:41.3]} 53. cxb4 {[%clk 0:00:12.4]} 53... axb4 {[%clk
0:00:35.9]} 54. Kxb4 {[%clk 0:00:13.3]} 54... Bh5 {[%clk 0:00:36.5]} 55. a5+
{[%clk 0:00:12.9]} 55... Kc7 {[%clk 0:00:36.1]} 56. Kc5 {[%clk 0:00:13.5]} 56...
Bg6 {[%clk 0:00:30.6]} 57. a6 {[%clk 0:00:13.2]} 57... Bh7 {[%clk 0:00:16.6]}
58. Bc6 {[%clk 0:00:12.6]} 58... g4 {[%clk 0:00:07.6]} 59. a7 {[%clk 0:00:11.7]}
59... Bxe4 {[%clk 0:00:08.1]} 60. Bxe4 {[%clk 0:00:10.4]} 60... gxf3 {[%clk
0:00:08.1]} 61. gxf3 {[%clk 0:00:10.2]} 61... Kd7 {[%clk 0:00:09]} 62. a8=Q
{[%clk 0:00:10.2]} 62... Ke7 {[%clk 0:00:09.9]} 63. Qc6 {[%clk 0:00:10.3]} 63...
Kf6 {[%clk 0:00:10.8]} 64. Qd6 {[%clk 0:00:10.4]} 64... Kf7 {[%clk 0:00:10.7]}
65. Qxe5 {[%clk 0:00:10.3]} 65... Ke7 {[%clk 0:00:09.9]} 66. Qxf4 {[%clk
0:00:10.5]} 66... e5 {[%clk 0:00:09.2]} 67. Qxh4+ {[%clk 0:00:10.9]} 67... Ke6
{[%clk 0:00:09.6]} 68. Qg5 {[%clk 0:00:11.3]} 68... Kf7 {[%clk 0:00:09]} 69. h4
{[%clk 0:00:11.9]} 69... Ke6 {[%clk 0:00:09.4]} 70. h5 {[%clk 0:00:12.5]} 70...
Kf7 {[%clk 0:00:09.8]} 71. h6 {[%clk 0:00:13.1]} 71... Ke8 {[%clk 0:00:10.7]}
72. h7 {[%clk 0:00:13.4]} 72... Kd7 {[%clk 0:00:10.7]} 73. h8=Q {[%clk
0:00:12.3]} 73... Ke6 {[%clk 0:00:11.6]} 74. Qhh6+ {[%clk 0:00:12.6]} 74... Kd7
{[%clk 0:00:12.5]} 75. Qgg7+ {[%clk 0:00:13]} 75... Ke8 {[%clk 0:00:13.4]} 76.
Qhh8# {[%clk 0:00:13.5]} 1-0